[Event "Titled Tuesday Blitz October 18 Late 2022"]
[White "Almedina Ortiz, Edgardo J."]
[Black "Kobla, Vishal"]
[WhiteFideId "3100197"]
[BlackFideId "2078457"]
[WhiteElo "2217"]
[BlackElo "1972"]
[Result "0-1"]
[Round "07"]
[TimeControl "180+1"]
[Date "2022.10.19"]
[WhiteClock "0:00:03"]
[BlackClock "0:00:42"]

1. e4 {[%clk 0:03:00]}  c5 {[%clk 0:03:00]} 2. Nf3 {[%clk 0:03:00]}  Nc6 {[%clk 0:02:59]} 3. d4 {[%clk 0:02:58]}  cxd4 {[%clk 0:03:00]} 4. Nxd4 {[%clk 0:02:58]}  Nf6 {[%clk 0:03:00]} 5. Nc3 {[%clk 0:02:58]}  d6 {[%clk 0:03:01]} 6. Bg5 {[%clk 0:02:52]}  e6 {[%clk 0:02:59]} 7. Qd2 {[%clk 0:02:50]}  a6 {[%clk 0:03:00]} 8. O-O-O {[%clk 0:02:49]}  Bd7 {[%clk 0:03:00]} 9. f4 {[%clk 0:02:49]}  b5 {[%clk 0:03:00]} 10. Nxc6 {[%clk 0:02:09]}  Bxc6 {[%clk 0:02:58]} 11. Bd3 {[%clk 0:02:09]}  h6 {[%clk 0:02:56]} 12. Bxf6 {[%clk 0:02:06]}  gxf6 {[%clk 0:02:53]} 13. f5 {[%clk 0:02:05]}  h5 {[%clk 0:02:47]} 14. Kb1 {[%clk 0:02:04]}  b4 {[%clk 0:02:43]} 15. Ne2 {[%clk 0:02:00]}  Qb6 {[%clk 0:02:42]} 16. fxe6 {[%clk 0:01:45]}  fxe6 {[%clk 0:02:43]} 17. Rhf1 {[%clk 0:01:30]}  Be7 {[%clk 0:02:36]} 18. Nf4 {[%clk 0:01:28]}  Bd7 {[%clk 0:02:03]} 19. Ng6 {[%clk 0:01:02]}  Rg8 {[%clk 0:01:51]} 20. Nxe7 {[%clk 0:01:00]}  Kxe7 {[%clk 0:01:52]} 21. Qh6 {[%clk 0:00:49]}  Raf8 {[%clk 0:01:42]} 22. g3 {[%clk 0:00:39]}  Qc5 {[%clk 0:01:35]} 23. Bxa6 {[%clk 0:00:20]}  Rg4 {[%clk 0:01:21]} 24. Be2 {[%clk 0:00:17]}  Rxe4 {[%clk 0:01:20]} 25. Bxh5 {[%clk 0:00:16]}  d5 {[%clk 0:01:15]} 26. Bf3 {[%clk 0:00:12]}  Re5 {[%clk 0:01:07]} 27. Bh5 {[%clk 0:00:09]}  Kd8 {[%clk 0:00:52]} 28. Rxf6 {[%clk 0:00:06]}  Rg8 {[%clk 0:00:49]} 29. Bf7 {[%clk 0:00:05]}  Rf8 {[%clk 0:00:44]} 30. Bxe6 {[%clk 0:00:03]}  Rxf6 {[%clk 0:00:43]} 31. Qxf6+ {[%clk 0:00:03]}  Qe7 {[%clk 0:00:42]} 0-1


[Site "https://www.chess.com"]

[Event "Titled Tuesday Blitz October 18 Late 2022"]
[White "Amburgy, Ryan"]
[Black "Sukandar, Irine Kharisma"]
[WhiteFideId "30924820"]
[BlackFideId "7101937"]
[WhiteElo "2121"]
[BlackElo "2301"]
[Result "1-0"]
[Round "07"]
[TimeControl "180+1"]
[Date "2022.10.18"]
[WhiteClock "0:01:34"]
[BlackClock "0:00:21"]

1. Nf3 {[%clk 0:03:00]}  b6 {[%clk 0:02:57]} 2. e4 {[%clk 0:03:00]}  Bb7 {[%clk 0:02:57]} 3. Nc3 {[%clk 0:03:01]}  g6 {[%clk 0:02:56]} 4. d4 {[%clk 0:03:02]}  Bg7 {[%clk 0:02:57]} 5. Be3 {[%clk 0:03:00]}  e6 {[%clk 0:02:57]} 6. a4 {[%clk 0:02:59]}  Ne7 {[%clk 0:02:56]} 7. a5 {[%clk 0:02:59]}  d6 {[%clk 0:02:54]} 8. Qd2 {[%clk 0:02:58]}  e5 {[%clk 0:02:35]} 9. Bb5+ {[%clk 0:02:52]}  c6 {[%clk 0:02:34]} 10. Be2 {[%clk 0:02:52]}  b5 {[%clk 0:02:31]} 11. dxe5 {[%clk 0:02:47]}  dxe5 {[%clk 0:02:29]} 12. Qxd8+ {[%clk 0:02:48]}  Kxd8 {[%clk 0:02:29]} 13. Bc5 {[%clk 0:02:45]}  Na6 {[%clk 0:02:28]} 14. Bd6 {[%clk 0:02:45]}  f6 {[%clk 0:02:19]} 15. O-O-O {[%clk 0:02:45]}  Ke8 {[%clk 0:02:18]} 16. Na2 {[%clk 0:02:40]}  Kf7 {[%clk 0:02:16]} 17. Nb4 {[%clk 0:02:40]}  Rhd8 {[%clk 0:02:14]} 18. Nxa6 {[%clk 0:02:39]}  Bxa6 {[%clk 0:02:14]} 19. Bc5 {[%clk 0:02:37]}  Rxd1+ {[%clk 0:02:05]} 20. Rxd1 {[%clk 0:02:38]}  Bc8 {[%clk 0:02:06]} 21. c4 {[%clk 0:02:34]}  Be6 {[%clk 0:02:04]} 22. cxb5 {[%clk 0:02:32]}  cxb5 {[%clk 0:02:04]} 23. Bxb5 {[%clk 0:02:27]}  a6 {[%clk 0:01:27]} 24. Ba4 {[%clk 0:02:20]}  Bf8 {[%clk 0:01:19]} 25. b4 {[%clk 0:02:16]}  g5 {[%clk 0:01:15]} 26. Kb2 {[%clk 0:02:14]}  g4 {[%clk 0:01:14]} 27. Ne1 {[%clk 0:02:13]}  Ng6 {[%clk 0:01:12]} 28. Bxf8 {[%clk 0:02:13]}  Kxf8 {[%clk 0:01:09]} 29. Bb3 {[%clk 0:02:10]}  Nf4 {[%clk 0:01:05]} 30. g3 {[%clk 0:02:05]}  Bxb3 {[%clk 0:01:05]} 31. Kxb3 {[%clk 0:02:06]}  Ne6 {[%clk 0:01:04]} 32. Nc2 {[%clk 0:02:06]}  Ke7 {[%clk 0:01:04]} 33. Rd5 {[%clk 0:02:02]}  Rb8 {[%clk 0:01:02]} 34. Ka4 {[%clk 0:02:01]}  Nc7 {[%clk 0:01:01]} 35. Rc5 {[%clk 0:02:00]}  Nb5 {[%clk 0:01:00]} 36. Ne3 {[%clk 0:01:59]}  Kd6 {[%clk 0:00:54]} 37. Nxg4 {[%clk 0:01:56]}  Nd4 {[%clk 0:00:46]} 38. Ne3 {[%clk 0:01:51]}  Nc6 {[%clk 0:00:42]} 39. Nc4+ {[%clk 0:01:49]}  Kc7 {[%clk 0:00:38]} 40. f4 {[%clk 0:01:43]}  Rxb4+ {[%clk 0:00:37]} 41. Ka3 {[%clk 0:01:43]}  exf4 {[%clk 0:00:33]} 42. Rxc6+ {[%clk 0:01:40]}  Kxc6 {[%clk 0:00:30]} 43. Kxb4 {[%clk 0:01:41]}  f3 {[%clk 0:00:22]} 44. Ne3 {[%clk 0:01:35]}  Kd6 {[%clk 0:00:22]} 45. Kc4 {[%clk 0:01:34]}  Ke5 {[%clk 0:00:22]} 46. Kd3 {[%clk 0:01:35]}  h6 {[%clk 0:00:21]} 47. Ng4+ {[%clk 0:01:34]} 1-0


[Site "https://www.chess.com"]

[Event "Titled Tuesday Blitz October 18 Late 2022"]
[White "Ansh M Shah"]
[Black "Noboa Silva, Kevin"]
[WhiteFideId "25033379"]
[BlackFideId "3618471"]
[WhiteElo "2084"]
[BlackElo "2178"]
[Result "0-1"]
[Round "07"]
[TimeControl "180+1"]
[Date "2022.10.19"]
[WhiteClock "0:02:38"]
[BlackClock "0:02:31"]

1. d4 {[%clk 0:02:44]}  e6 {[%clk 0:02:53]} 2. c4 {[%clk 0:02:45]}  Bb4+ {[%clk 0:02:50]} 3. Nd2 {[%clk 0:02:44]}  a5 {[%clk 0:02:50]} 4. g3 {[%clk 0:02:44]}  Nf6 {[%clk 0:02:49]} 5. Bg2 {[%clk 0:02:44]}  O-O {[%clk 0:02:49]} 6. Nf3 {[%clk 0:02:45]}  b6 {[%clk 0:02:50]} 7. Ne5 {[%clk 0:02:44]}  Ra7 {[%clk 0:02:50]} 8. O-O {[%clk 0:02:44]}  Bb7 {[%clk 0:02:50]} 9. Bxb7 {[%clk 0:02:44]}  Rxb7 {[%clk 0:02:49]} 10. a3 {[%clk 0:02:45]}  Bxd2 {[%clk 0:02:49]} 11. Bxd2 {[%clk 0:02:46]}  d6 {[%clk 0:02:48]} 12. Nf3 {[%clk 0:02:46]}  c5 {[%clk 0:02:47]} 13. b4 {[%clk 0:02:46]}  axb4 {[%clk 0:02:47]} 14. axb4 {[%clk 0:02:47]}  cxd4 {[%clk 0:02:46]} 15. Nxd4 {[%clk 0:02:46]}  Rc7 {[%clk 0:02:46]} 16. Qb3 {[%clk 0:02:46]}  d5 {[%clk 0:02:45]} 17. cxd5 {[%clk 0:02:39]}  Qxd5 {[%clk 0:02:45]} 18. Qxd5 {[%clk 0:02:38]}  Nxd5 {[%clk 0:02:45]} 19. Rfc1 {[%clk 0:02:38]}  Rxc1+ {[%clk 0:02:37]} 20. Rxc1 {[%clk 0:02:39]}  Nd7 {[%clk 0:02:36]} 21. b5 {[%clk 0:02:37]}  Nc5 {[%clk 0:02:35]} 22. Bb4 {[%clk 0:02:38]}  Nxb4 {[%clk 0:02:34]} 23. Nc6 {[%clk 0:02:37]}  Nxc6 {[%clk 0:02:33]} 24. bxc6 {[%clk 0:02:38]}  Rc8 {[%clk 0:02:33]} 25. Rd1 {[%clk 0:02:39]}  g6 {[%clk 0:02:33]} 26. Rd6 {[%clk 0:02:38]}  b5 {[%clk 0:02:31]} 0-1


[Site "https://www.chess.com"]

[Event "Titled Tuesday Blitz October 18 Late 2022"]
[White "Antonio, Jorge Carlos"]
[Black "Papp, Petra"]
[WhiteFideId "113190"]
[BlackFideId "739049"]
[WhiteElo "2247"]
[BlackElo "2259"]
[Result "0-1"]
[Round "07"]
[TimeControl "180+1"]
[Date "2022.10.19"]
[WhiteClock "0:00:33"]
[BlackClock "0:00:22"]

1. d4 {[%clk 0:03:00]}  d5 {[%clk 0:00:45]} 2. Nf3 {[%clk 0:02:57]}  c6 {[%clk 0:00:45]} 3. Bf4 {[%clk 0:02:56]}  Nf6 {[%clk 0:00:45]} 4. e3 {[%clk 0:02:56]}  Bf5 {[%clk 0:00:45]} 5. c4 {[%clk 0:02:56]}  e6 {[%clk 0:00:45]} 6. Nc3 {[%clk 0:02:56]}  Nbd7 {[%clk 0:00:44]} 7. Ne5 {[%clk 0:02:54]}  Bd6 {[%clk 0:00:43]} 8. Nxd7 {[%clk 0:02:52]}  Qxd7 {[%clk 0:00:43]} 9. Bxd6 {[%clk 0:02:52]}  Qxd6 {[%clk 0:00:43]} 10. Qb3 {[%clk 0:02:52]}  O-O {[%clk 0:00:42]} 11. Be2 {[%clk 0:02:46]}  Rab8 {[%clk 0:00:41]} 12. cxd5 {[%clk 0:02:44]}  exd5 {[%clk 0:00:41]} 13. O-O {[%clk 0:02:43]}  Rfe8 {[%clk 0:00:41]} 14. Rac1 {[%clk 0:02:40]}  Ne4 {[%clk 0:00:41]} 15. Nxe4 {[%clk 0:02:31]}  Bxe4 {[%clk 0:00:41]} 16. Bd3 {[%clk 0:02:31]}  Re6 {[%clk 0:00:40]} 17. Bxe4 {[%clk 0:02:28]}  Rxe4 {[%clk 0:00:40]} 18. Qc2 {[%clk 0:02:22]}  h5 {[%clk 0:00:38]} 19. a3 {[%clk 0:02:21]}  h4 {[%clk 0:00:38]} 20. h3 {[%clk 0:02:17]}  Rbe8 {[%clk 0:00:38]} 21. b4 {[%clk 0:02:16]}  R8e6 {[%clk 0:00:38]} 22. b5 {[%clk 0:02:15]}  Rg6 {[%clk 0:00:37]} 23. bxc6 {[%clk 0:02:07]}  bxc6 {[%clk 0:00:37]} 24. Qc5 {[%clk 0:01:50]}  Qd7 {[%clk 0:00:36]} 25. Kh2 {[%clk 0:01:49]}  Ree6 {[%clk 0:00:36]} 26. Rb1 {[%clk 0:01:42]}  Rg5 {[%clk 0:00:33]} 27. Qb4 {[%clk 0:01:32]}  Reg6 {[%clk 0:00:32]} 28. Qb8+ {[%clk 0:01:26]}  Kh7 {[%clk 0:00:31]} 29. Rg1 {[%clk 0:01:25]}  Rf5 {[%clk 0:00:29]} 30. Rb2 {[%clk 0:01:19]}  Qe6 {[%clk 0:00:28]} 31. Qc7 {[%clk 0:01:11]}  a5 {[%clk 0:00:26]} 32. Rc2 {[%clk 0:01:01]}  a4 {[%clk 0:00:25]} 33. Rgc1 {[%clk 0:01:00]}  Rfg5 {[%clk 0:00:24]} 34. Rg1 {[%clk 0:00:50]}  Qe4 {[%clk 0:00:24]} 35. f3 {[%clk 0:00:38]}  Qxc2 {[%clk 0:00:23]} 36. Qf4 {[%clk 0:00:35]}  Rxg2+ {[%clk 0:00:23]} 37. Kh1 {[%clk 0:00:33]}  Rxg1# {[%clk 0:00:22]} 0-1


[Site "https://www.chess.com"]

[Event "Titled Tuesday Blitz October 18 Late 2022"]
[White "Arkell, Keith C"]
[Black "Jimenez Jimenez, Leandro"]
[WhiteFideId "400270"]
[BlackFideId "6415253"]
[WhiteElo "2336"]
[BlackElo "2217"]
[Result "1-0"]
[Round "07"]
[TimeControl "180+1"]
[Date "2022.10.19"]
[WhiteClock "0:01:42"]
[BlackClock "0:00:01"]

1. d4 {[%clk 0:02:55]}  d5 {[%clk 0:02:58]} 2. Nf3 {[%clk 0:02:54]}  Nf6 {[%clk 0:02:58]} 3. c4 {[%clk 0:02:55]}  dxc4 {[%clk 0:02:58]} 4. Nc3 {[%clk 0:02:54]}  a6 {[%clk 0:02:57]} 5. e4 {[%clk 0:02:53]}  b5 {[%clk 0:02:55]} 6. e5 {[%clk 0:02:53]}  Nd5 {[%clk 0:02:55]} 7. g3 {[%clk 0:02:52]}  Bb7 {[%clk 0:02:53]} 8. Bg2 {[%clk 0:02:52]}  e6 {[%clk 0:02:52]} 9. Bg5 {[%clk 0:02:51]}  Be7 {[%clk 0:02:50]} 10. h4 {[%clk 0:02:51]}  Nxc3 {[%clk 0:02:49]} 11. bxc3 {[%clk 0:02:51]}  Nd7 {[%clk 0:02:48]} 12. O-O {[%clk 0:02:50]}  h6 {[%clk 0:02:45]} 13. Bf4 {[%clk 0:02:49]}  O-O {[%clk 0:02:44]} 14. Qd2 {[%clk 0:02:49]}  Re8 {[%clk 0:02:34]} 15. Bxh6 {[%clk 0:02:46]}  gxh6 {[%clk 0:02:33]} 16. Qxh6 {[%clk 0:02:47]}  Bf8 {[%clk 0:02:26]} 17. Qh5 {[%clk 0:02:47]}  Bxf3 {[%clk 0:02:05]} 18. Bxf3 {[%clk 0:02:45]}  Rb8 {[%clk 0:02:05]} 19. Be4 {[%clk 0:02:46]}  Bg7 {[%clk 0:02:03]} 20. f4 {[%clk 0:02:43]}  f5 {[%clk 0:02:00]} 21. Bc6 {[%clk 0:02:35]}  Re7 {[%clk 0:01:56]} 22. g4 {[%clk 0:02:34]}  Qe8 {[%clk 0:01:33]} 23. Qxe8+ {[%clk 0:02:31]}  Rbxe8 {[%clk 0:01:31]} 24. gxf5 {[%clk 0:02:29]}  exf5 {[%clk 0:01:31]} 25. a4 {[%clk 0:02:29]}  Rb8 {[%clk 0:01:18]} 26. axb5 {[%clk 0:02:29]}  axb5 {[%clk 0:01:18]} 27. Rfb1 {[%clk 0:02:28]}  Nb6 {[%clk 0:01:02]} 28. Rxb5 {[%clk 0:02:27]}  Kh7 {[%clk 0:01:01]} 29. Kf2 {[%clk 0:02:26]}  Bh6 {[%clk 0:01:00]} 30. Kf3 {[%clk 0:02:26]}  Rg7 {[%clk 0:00:57]} 31. e6 {[%clk 0:02:25]}  Rf8 {[%clk 0:00:50]} 32. Ra7 {[%clk 0:02:25]}  Kg6 {[%clk 0:00:39]} 33. Rc5 {[%clk 0:02:13]}  Kf6 {[%clk 0:00:38]} 34. Bb5 {[%clk 0:02:09]}  Rg4 {[%clk 0:00:33]} 35. Raxc7 {[%clk 0:01:55]}  Rxf4+ {[%clk 0:00:31]} 36. Ke2 {[%clk 0:01:55]}  Re4+ {[%clk 0:00:21]} 37. Kd1 {[%clk 0:01:55]}  Rxe6 {[%clk 0:00:18]} 38. R7c6 {[%clk 0:01:54]}  Re8 {[%clk 0:00:14]} 39. Rxb6 {[%clk 0:01:54]}  Rxb6 {[%clk 0:00:03]} 40. Bxe8 {[%clk 0:01:54]}  Rb1+ {[%clk 0:00:04]} 41. Kc2 {[%clk 0:01:54]}  Rh1 {[%clk 0:00:04]} 42. Bd7 {[%clk 0:01:45]}  f4 {[%clk 0:00:03]} 43. Rf5+ {[%clk 0:01:45]}  Ke7 {[%clk 0:00:03]} 44. Bb5 {[%clk 0:01:45]}  Rxh4 {[%clk 0:00:03]} 45. Bxc4 {[%clk 0:01:45]}  Kd6 {[%clk 0:00:03]} 46. Rf6+ {[%clk 0:01:44]}  Kc7 {[%clk 0:00:03]} 47. Kb3 {[%clk 0:01:44]}  Rh2 {[%clk 0:00:03]} 48. Bd5 {[%clk 0:01:42]}  Kb8 {[%clk 0:00:01]} 49. Kc4 {[%clk 0:01:42]} 1-0


[Site "https://www.chess.com"]

[Event "Titled Tuesday Blitz October 18 Late 2022"]
[White "Ballester Llagaria, Luis Eduardo"]
[Black "Leschinsky, Gary"]
[WhiteFideId "2297620"]
[BlackFideId "30951321"]
[WhiteElo "2344"]
[BlackElo "1855"]
[Result "1-0"]
[Round "07"]
[TimeControl "180+1"]
[Date "2022.10.19"]
[WhiteClock "0:01:53"]
[BlackClock "0:01:18"]

1. e4 {[%clk 0:03:00]}  c5 {[%clk 0:02:59]} 2. Nc3 {[%clk 0:03:00]}  e6 {[%clk 0:02:58]} 3. Nf3 {[%clk 0:03:00]}  a6 {[%clk 0:02:55]} 4. d4 {[%clk 0:03:01]}  cxd4 {[%clk 0:02:52]} 5. Nxd4 {[%clk 0:03:02]}  b5 {[%clk 0:02:53]} 6. Bd3 {[%clk 0:03:02]}  Bb7 {[%clk 0:02:49]} 7. O-O {[%clk 0:03:02]}  Nc6 {[%clk 0:02:49]} 8. Nxc6 {[%clk 0:03:01]}  Bxc6 {[%clk 0:02:50]} 9. Re1 {[%clk 0:03:02]}  Qb8 {[%clk 0:02:42]} 10. a4 {[%clk 0:03:00]}  b4 {[%clk 0:02:41]} 11. Nd5 {[%clk 0:03:00]}  Bd6 {[%clk 0:02:41]} 12. h3 {[%clk 0:02:57]}  Ne7 {[%clk 0:02:34]} 13. Nxe7 {[%clk 0:02:52]}  Bxe7 {[%clk 0:02:30]} 14. Qg4 {[%clk 0:02:53]}  O-O {[%clk 0:02:23]} 15. e5 {[%clk 0:02:48]}  f5 {[%clk 0:02:23]} 16. exf6 {[%clk 0:02:31]}  Bxf6 {[%clk 0:02:23]} 17. Bf4 {[%clk 0:02:31]}  e5 {[%clk 0:02:11]} 18. Qh5 {[%clk 0:02:10]}  g6 {[%clk 0:01:45]} 19. Bxg6 {[%clk 0:02:10]}  hxg6 {[%clk 0:01:45]} 20. Qxg6+ {[%clk 0:02:10]}  Bg7 {[%clk 0:01:45]} 21. Bxe5 {[%clk 0:02:05]}  Qxe5 {[%clk 0:01:45]} 22. Rxe5 {[%clk 0:02:05]}  Rf6 {[%clk 0:01:44]} 23. Qg4 {[%clk 0:01:59]}  Raf8 {[%clk 0:01:43]} 24. Rg5 {[%clk 0:01:58]}  R8f7 {[%clk 0:01:42]} 25. Re1 {[%clk 0:01:56]}  Rxf2 {[%clk 0:01:41]} 26. Re8+ {[%clk 0:01:53]}  Kh7 {[%clk 0:01:18]} 27. Rxg7+ {[%clk 0:01:54]}  Rxg7 {[%clk 0:01:18]} 28. Qh5# {[%clk 0:01:53]} 1-0


[Site "https://www.chess.com"]

[Event "Titled Tuesday Blitz October 18 Late 2022"]
[White "Bettalli, Francesco"]
[Black "Burke, Paul"]
[WhiteFideId "2816453"]
[BlackFideId "2605767"]
[WhiteElo "2216"]
[BlackElo "1894"]
[Result "1-0"]
[Round "07"]
[TimeControl "180+1"]
[Date "2022.10.19"]
[WhiteClock "0:02:03"]
[BlackClock "0:00:52"]

1. d4 {[%clk 0:02:58]}  a6 {[%clk 0:02:59]} 2. Nc3 {[%clk 0:02:58]}  d6 {[%clk 0:02:59]} 3. e4 {[%clk 0:02:58]}  g6 {[%clk 0:02:59]} 4. Bf4 {[%clk 0:02:58]}  Nd7 {[%clk 0:02:59]} 5. Qd2 {[%clk 0:02:58]}  h6 {[%clk 0:02:58]} 6. O-O-O {[%clk 0:02:56]}  Bg7 {[%clk 0:02:58]} 7. f3 {[%clk 0:02:53]}  e6 {[%clk 0:02:58]} 8. h4 {[%clk 0:02:51]}  Ne7 {[%clk 0:02:58]} 9. g4 {[%clk 0:02:51]}  b6 {[%clk 0:02:57]} 10. h5 {[%clk 0:02:51]}  g5 {[%clk 0:02:56]} 11. Be3 {[%clk 0:02:52]}  Bb7 {[%clk 0:02:55]} 12. Bg2 {[%clk 0:02:52]}  Qb8 {[%clk 0:02:53]} 13. f4 {[%clk 0:02:52]}  f6 {[%clk 0:02:50]} 14. fxg5 {[%clk 0:02:46]}  fxg5 {[%clk 0:02:51]} 15. Nge2 {[%clk 0:02:43]}  Qa7 {[%clk 0:02:50]} 16. Ng3 {[%clk 0:02:42]}  O-O-O {[%clk 0:02:47]} 17. a4 {[%clk 0:02:41]}  Rdf8 {[%clk 0:02:38]} 18. Rhf1 {[%clk 0:02:42]}  Nf6 {[%clk 0:02:26]} 19. Qe2 {[%clk 0:02:39]}  Kb8 {[%clk 0:02:22]} 20. Nh1 {[%clk 0:02:33]}  Qa8 {[%clk 0:02:03]} 21. Nf2 {[%clk 0:02:30]}  d5 {[%clk 0:01:53]} 22. e5 {[%clk 0:02:29]}  Nd7 {[%clk 0:01:49]} 23. Nd3 {[%clk 0:02:15]}  c5 {[%clk 0:01:28]} 24. dxc5 {[%clk 0:02:13]}  Nxe5 {[%clk 0:01:24]} 25. Nxe5 {[%clk 0:02:11]}  Bxe5 {[%clk 0:01:24]} 26. cxb6 {[%clk 0:02:10]}  Nc6 {[%clk 0:01:06]} 27. Bc5 {[%clk 0:02:06]}  Bf4+ {[%clk 0:00:55]} 28. Rxf4 {[%clk 0:02:02]}  Rxf4 {[%clk 0:00:52]} 29. Qxe6 {[%clk 0:02:03]} 1-0


[Site "https://www.chess.com"]

[Event "Titled Tuesday Blitz October 18 Late 2022"]
[White "Bjelobrk, Igor"]
[Black "Licznerski, Lukasz"]
[WhiteFideId "4300726"]
[BlackFideId "1179250"]
[WhiteElo "2335"]
[BlackElo "2403"]
[Result "0-1"]
[Round "07"]
[TimeControl "180+1"]
[Date "2022.10.18"]
[WhiteClock "0:00:25"]
[BlackClock "0:00:25"]

1. Nf3 {[%clk 0:03:00]}  Nf6 {[%clk 0:02:58]} 2. g3 {[%clk 0:03:00]}  g6 {[%clk 0:02:58]} 3. Bg2 {[%clk 0:03:00]}  Bg7 {[%clk 0:02:59]} 4. O-O {[%clk 0:02:59]}  d5 {[%clk 0:03:00]} 5. c4 {[%clk 0:02:58]}  O-O {[%clk 0:02:59]} 6. cxd5 {[%clk 0:02:57]}  Nxd5 {[%clk 0:03:00]} 7. d4 {[%clk 0:02:56]}  Nb6 {[%clk 0:03:01]} 8. Nc3 {[%clk 0:02:51]}  Nc6 {[%clk 0:03:01]} 9. e3 {[%clk 0:02:51]}  Re8 {[%clk 0:03:00]} 10. h3 {[%clk 0:02:41]}  a5 {[%clk 0:02:59]} 11. d5 {[%clk 0:02:38]}  Ne5 {[%clk 0:02:59]} 12. Nxe5 {[%clk 0:02:30]}  Bxe5 {[%clk 0:03:00]} 13. e4 {[%clk 0:02:31]}  e6 {[%clk 0:02:52]} 14. Bh6 {[%clk 0:02:28]}  a4 {[%clk 0:02:32]} 15. Rc1 {[%clk 0:02:21]}  Bd7 {[%clk 0:02:25]} 16. Re1 {[%clk 0:02:19]}  c6 {[%clk 0:02:23]} 17. Qd2 {[%clk 0:01:50]}  exd5 {[%clk 0:02:08]} 18. exd5 {[%clk 0:01:49]}  cxd5 {[%clk 0:02:09]} 19. Nxd5 {[%clk 0:01:37]}  Bc6 {[%clk 0:02:08]} 20. Nxb6 {[%clk 0:01:26]}  Qxb6 {[%clk 0:02:08]} 21. Bxc6 {[%clk 0:01:20]}  bxc6 {[%clk 0:02:09]} 22. Rc2 {[%clk 0:01:15]}  Bd4 {[%clk 0:01:34]} 23. Be3 {[%clk 0:01:11]}  Bxe3 {[%clk 0:01:19]} 24. Rxe3 {[%clk 0:01:11]}  Rxe3 {[%clk 0:01:20]} 25. Qxe3 {[%clk 0:01:11]}  Qxe3 {[%clk 0:01:19]} 26. fxe3 {[%clk 0:01:12]}  Rb8 {[%clk 0:01:19]} 27. Kf2 {[%clk 0:01:10]}  Kf8 {[%clk 0:01:16]} 28. Kf3 {[%clk 0:01:09]}  Ke7 {[%clk 0:01:15]} 29. Rc4 {[%clk 0:01:08]}  Rxb2 {[%clk 0:01:09]} 30. Rxa4 {[%clk 0:01:08]}  Rb7 {[%clk 0:00:54]} 31. Ra8 {[%clk 0:01:06]}  h5 {[%clk 0:00:41]} 32. a4 {[%clk 0:01:06]}  Kd6 {[%clk 0:00:41]} 33. a5 {[%clk 0:01:06]}  Kc5 {[%clk 0:00:39]} 34. a6 {[%clk 0:01:06]}  Re7 {[%clk 0:00:37]} 35. Ke2 {[%clk 0:00:58]}  Kb6 {[%clk 0:00:34]} 36. Kd3 {[%clk 0:00:56]}  Ra7 {[%clk 0:00:31]} 37. Rxa7 {[%clk 0:00:46]}  Kxa7 {[%clk 0:00:30]} 38. Kc4 {[%clk 0:00:47]}  Kxa6 {[%clk 0:00:30]} 39. Kc5 {[%clk 0:00:47]}  Kb7 {[%clk 0:00:30]} 40. Kd6 {[%clk 0:00:30]}  Kb6 {[%clk 0:00:29]} 41. e4 {[%clk 0:00:31]}  c5 {[%clk 0:00:29]} 42. e5 {[%clk 0:00:31]}  c4 {[%clk 0:00:28]} 43. Ke7 {[%clk 0:00:32]}  c3 {[%clk 0:00:28]} 44. Kxf7 {[%clk 0:00:32]}  c2 {[%clk 0:00:29]} 45. e6 {[%clk 0:00:33]}  c1=Q {[%clk 0:00:29]} 46. e7 {[%clk 0:00:33]}  Qc7 {[%clk 0:00:27]} 47. Kf8 {[%clk 0:00:30]}  Qd6 {[%clk 0:00:25]} 48. Kf7 {[%clk 0:00:30]}  Qd5+ {[%clk 0:00:25]} 49. Kg7 {[%clk 0:00:26]}  Qe6 {[%clk 0:00:24]} 50. Kf8 {[%clk 0:00:26]}  Qf6+ {[%clk 0:00:24]} 51. Ke8 {[%clk 0:00:26]}  Kc7 {[%clk 0:00:24]} 52. h4 {[%clk 0:00:25]}  Kd6 {[%clk 0:00:25]} 0-1


[Site "https://www.chess.com"]

[Event "Titled Tuesday Blitz October 18 Late 2022"]
[White "Bordi, Kevin"]
[Black "Bortnyk, Olexandr"]
[WhiteFideId "621862"]
[BlackFideId "14120828"]
[WhiteElo "2794"]
[BlackElo "2723"]
[Result "0-1"]
[Round "07"]
[TimeControl "180+1"]
[Date "2022.10.18"]
[WhiteClock "0:00:06"]
[BlackClock "0:01:42"]

1. d4 {[%clk 0:03:00]}  d6 {[%clk 0:02:58]} 2. e4 {[%clk 0:03:00]}  Nf6 {[%clk 0:02:58]} 3. Nc3 {[%clk 0:03:01]}  Nbd7 {[%clk 0:02:58]} 4. g3 {[%clk 0:03:01]}  h5 {[%clk 0:02:52]} 5. h4 {[%clk 0:02:58]}  g6 {[%clk 0:02:50]} 6. Bg2 {[%clk 0:02:59]}  Bg7 {[%clk 0:02:51]} 7. Nge2 {[%clk 0:02:59]}  c5 {[%clk 0:02:51]} 8. Bg5 {[%clk 0:02:58]}  cxd4 {[%clk 0:02:50]} 9. Nxd4 {[%clk 0:02:55]}  Qa5 {[%clk 0:02:49]} 10. Qd2 {[%clk 0:02:54]}  Ne5 {[%clk 0:02:45]} 11. O-O {[%clk 0:02:24]}  Nc4 {[%clk 0:02:41]} 12. Qe1 {[%clk 0:02:24]}  Ng4 {[%clk 0:02:12]} 13. Nb3 {[%clk 0:01:51]}  Bxc3 {[%clk 0:02:07]} 14. bxc3 {[%clk 0:01:47]}  Qc7 {[%clk 0:02:05]} 15. Nd2 {[%clk 0:01:23]}  Nxd2 {[%clk 0:02:03]} 16. Qxd2 {[%clk 0:01:23]}  O-O {[%clk 0:02:03]} 17. f3 {[%clk 0:01:19]}  Ne5 {[%clk 0:02:03]} 18. f4 {[%clk 0:01:15]}  Ng4 {[%clk 0:02:01]} 19. f5 {[%clk 0:01:15]}  Re8 {[%clk 0:01:57]} 20. fxg6 {[%clk 0:01:05]}  Qc5+ {[%clk 0:01:57]} 21. Kh1 {[%clk 0:01:04]}  fxg6 {[%clk 0:01:58]} 22. e5 {[%clk 0:00:49]}  Bf5 {[%clk 0:01:52]} 23. Rxf5 {[%clk 0:00:40]}  gxf5 {[%clk 0:01:52]} 24. Bh6 {[%clk 0:00:19]}  Qxe5 {[%clk 0:01:42]} 25. Qg5+ {[%clk 0:00:19]}  Kh7 {[%clk 0:01:42]} 26. Qxh5 {[%clk 0:00:06]}  Nxh6 {[%clk 0:01:42]} 0-1


[Site "https://www.chess.com"]